bitfinex-derivatives/quotes_BTCF0:USTF0_20241218
["timestamp","ask_amount","ask_price","bid_price","bid_amount"]
[1734488750321,0.00010979,105370.0,105360.0,0.318354]
[1734488751811,0.47122006,105370.0,105360.0,0.1368]
[1734488752212,0.047454,105360.0,105350.0,0.19245544]
[1734488752925,0.04755979,105370.0,105360.0,0.047454]
[1734488753319,0.00010979,105370.0,105360.0,0.047454]
[1734488753524,0.00010979,105370.0,105360.0,0.182154]
[1734488753724,0.04755879,105370.0,105360.0,0.182154]
[1734488754816,0.04755879,105370.0,105360.0,0.20104776]
[1734488755216,0.04755879,105370.0,105360.0,0.192154]
[1734488757520,0.11042006,105370.0,105360.0,0.07876909]
[1734488757718,0.11042006,105370.0,105360.0,0.03131509]
[1734488759230,0.04755879,105370.0,105360.0,0.03131509]
[1734488759829,0.11042006,105370.0,105360.0,0.03131509]
[1734488760532,0.11042006,105370.0,105360.0,0.01]
[1734488761325,0.47122006,105370.0,105360.0,0.01]
[1734488762024,0.47122006,105370.0,105360.0,0.03131509]
[1734488762230,0.47122006,105370.0,105360.0,0.01]
[1734488762434,0.61202006,105370.0,105360.0,0.01]
[1734488764936,0.74982006,105370.0,105360.0,0.01]
[1734488770038,0.72821876,105370.0,105360.0,0.01]
[1734488770844,0.58741876,105370.0,105360.0,0.01]
[1734488771047,0.44961876,105370.0,105360.0,0.01]
[1734488771346,0.44961876,105370.0,105360.0,0.152]
[1734488772342,0.44961876,105370.0,105360.0,0.22966285]
[1734488772646,0.04755879,105370.0,105360.0,0.199454]
[1734488772941,0.08881876,105370.0,105360.0,0.199454]
[1734488773146,0.44961876,105370.0,105360.0,0.342254]
[1734488773443,0.08881876,105370.0,105360.0,0.342254]
[1734488774248,0.08881876,105370.0,105360.0,0.36356909]
[1734488774448,0.08881876,105370.0,105360.0,0.342254]
[1734488775234,0.44961876,105370.0,105360.0,0.342254]
[1734488775537,0.44961876,105370.0,105360.0,0.199454]
[1734488776243,0.44961876,105370.0,105360.0,0.152]
[1734488777847,0.08881876,105370.0,105360.0,0.199454]
[1734488778551,0.44961876,105370.0,105360.0,0.199454]
[1734488779052,0.40835879,105370.0,105360.0,0.199454]
[1734488779352,0.40835879,105370.0,105360.0,0.333454]
[1734488780547,0.36090979,105370.0,105360.0,0.333454]
[1734488781541,0.00010979,105370.0,105360.0,0.77677394]
[1734488781747,0.36926291,105380.0,105360.0,0.76572282]
[1734488782051,0.3608,105380.0,105370.0,0.057449]
[1734488782247,0.3608,105380.0,105370.0,0.200249]
[1734488783354,0.40205997,105380.0,105370.0,0.200249]
[1734488784045,0.3608,105380.0,105370.0,0.200249]
[1734488784547,0.3608,105380.0,105370.0,0.24150897]
[1734488784746,0.0005,105390.0,105380.0,0.047445]
[1734488784947,0.0005,105390.0,105380.0,0.74679873]
[1734488785245,0.0005,105390.0,105380.0,0.73790497]
[1734488785449,0.04277247,105400.0,105390.0,0.04744]
[1734488785648,0.04277247,105400.0,105390.0,0.18484]
[1734488786745,0.0015125,105400.0,105390.0,0.18484]
[1734488786945,0.0015125,105400.0,105390.0,0.22609997]
[1734488787349,0.0015125,105400.0,105390.0,0.58689997]
[1734488787537,0.0015125,105400.0,105390.0,0.58696742]
[1734488787942,0.0015125,105400.0,105390.0,0.54570745]
[1734488788750,0.0015125,105400.0,105390.0,0.60851688]
[1734488789451,8.855e-05,105400.0,105390.0,0.60851688]
[1734488790049,0.71503958,105430.0,105390.0,0.60851688]
[1734488790050,0.00034,105430.0,105390.0,0.97132631]
[1734488790249,0.00034,105430.0,105420.0,0.11023643]
[1734488790756,0.00034,105430.0,105420.0,0.39093643]
[1734488791149,0.00034,105430.0,105420.0,0.68900009]
[1734488792644,0.00034,105430.0,105420.0,0.75180952]
[1734488792846,0.00034,105430.0,105420.0,1.05180952]
[1734488793552,0.00034,105430.0,105420.0,1.30480952]
[1734488794354,0.00084,105430.0,105420.0,1.30480952]
[1734488795057,0.28356708,105460.0,105420.0,1.37642985]
[1734488795260,0.14416708,105460.0,105450.0,0.11022243]
[1734488795449,0.01006708,105460.0,105450.0,0.047413]
[1734488795651,0.01006708,105460.0,105450.0,0.188913]
[1734488796150,0.01006708,105460.0,105450.0,0.67533186]
[1734488796454,0.01006708,105460.0,105450.0,1.07140171]
[1734488797648,0.00142289,105480.0,105450.0,1.37140171]
[1734488797855,0.00142289,105480.0,105470.0,0.408204]
[1734488799660,0.42503232,105480.0,105470.0,0.047404]
[1734488799858,0.36222289,105480.0,105470.0,0.047404]
[1734488800756,0.00142289,105480.0,105470.0,0.047404]
[1734488800957,0.02777983,105490.0,105470.0,0.3608]
[1734488801257,0.01894261,105490.0,105480.0,0.0474]
[1734488801652,0.90678136,105500.0,105480.0,0.0474]
[1734488802155,0.3608,105490.0,105480.0,0.0474]
[1734488802359,0.3608,105490.0,105460.0,0.43227045]
[1734488802546,0.97888929,105500.0,105480.0,0.047397]
[1734488802750,0.97836928,105500.0,105480.0,0.047397]
[1734488802951,0.42360943,105490.0,105480.0,0.047397]
[1734488803453,0.3608,105490.0,105480.0,0.047397]
[1734488808057,0.93539613,105500.0,105480.0,0.047397]
[1734488808256,0.93487612,105500.0,105480.0,0.047397]
[1734488808557,0.37506885,105500.0,105490.0,0.047395]
[1734488808764,0.10009036,105500.0,105490.0,0.11030404]
[1734488809061,0.10009036,105500.0,105490.0,0.04749461]
[1734488810047,0.46089036,105500.0,105490.0,0.04749461]
[1734488810555,0.52369979,105500.0,105490.0,9.961e-05]
[1734488810767,0.57109079,105500.0,105490.0,9.961e-05]
[1734488811362,0.65396194,105500.0,105490.0,9.961e-05]
[1734488811963,0.57109079,105500.0,105490.0,9.961e-05]
[1734488812153,0.65396194,105500.0,105490.0,9.961e-05]
[1734488813062,0.57109079,105500.0,105490.0,9.961e-05]
[1734488813763,0.65396194,105500.0,105490.0,9.961e-05]
[1734488814768,0.98158566,105500.0,105460.0,0.047408]
[1734488814957,0.047401,105480.0,105470.0,0.3608]
[1734488815354,0.459501,105480.0,105470.0,0.3608]
[1734488815757,0.459501,105480.0,105470.0,0.408204]
[1734488815961,0.459501,105480.0,105470.0,0.40832037]
[1734488816866,0.52231043,105480.0,105470.0,0.36091637]
[1734488817055,0.56999587,105480.0,105470.0,0.36091637]
[1734488817765,0.6328053,105480.0,105470.0,0.36091637]
[1734488818362,0.57873945,105480.0,105470.0,0.36091637]
[1734488819252,0.60636317,105480.0,105470.0,0.36091637]
[1734488819958,0.6691726,105480.0,105470.0,0.36091637]
[1734488820259,0.047404,105470.0,105460.0,0.3608]
[1734488820563,0.2502803,105470.0,105460.0,0.3608]
[1734488820957,0.18747087,105470.0,105460.0,0.3608]
[1734488821159,0.18747087,105470.0,105460.0,0.36090588]
[1734488821456,0.2502803,105470.0,105460.0,0.36090588]
[1734488821659,0.18747087,105470.0,105460.0,0.36090588]
[1734488822466,0.21314631,105470.0,105460.0,0.36090588]
[1734488823167,0.047404,105470.0,105460.0,0.40831488]
[1734488823663,0.047404,105470.0,105460.0,0.54661488]
[1734488824257,0.047404,105470.0,105460.0,0.36090588]
[1734488825368,0.047404,105470.0,105460.0,0.36140588]
[1734488829161,0.27764358,105480.0,105460.0,0.47162431]
[1734488829356,0.19124458,105480.0,105470.0,0.3608]
[1734488829765,0.05614458,105480.0,105470.0,0.408204]
[1734488829962,0.00874358,105480.0,105470.0,0.47101343]
[1734488830160,0.1121049,105480.0,105470.0,0.58151343]
[1734488830465,0.15959634,105490.0,105470.0,0.58151343]
[1734488830772,0.16856162,105490.0,105480.0,0.5251]
[1734488831277,0.05645672,105490.0,105480.0,0.5251]
[1734488832257,9.544e-05,105490.0,105480.0,0.5251]
[1734488832457,9.544e-05,105490.0,105480.0,0.58790943]
[1734488833463,9.544e-05,105490.0,105480.0,0.88790943]
[1734488833663,0.1594919,105510.0,105500.0,0.047391]
[1734488833871,0.1594919,105510.0,105500.0,0.408191]
[1734488834270,0.047387,105510.0,105500.0,0.408191]
[1734488835475,0.05598463,105510.0,105500.0,0.408191]
[1734488837790,0.00859763,105510.0,105500.0,0.408191]
[1734488838081,0.24232525,105520.0,105500.0,0.165391]
[1734488838379,0.11019543,105510.0,105490.0,0.516994]
[1734488838572,0.0005,105500.0,105490.0,0.516994]
[1734488839283,0.11070043,105500.0,105490.0,0.516994]
[1734488839471,0.11020043,105500.0,105490.0,0.516994]
[1734488839968,0.047391,105500.0,105490.0,0.516994]
[1734488840370,0.047395,105490.0,105480.0,0.896099]
[1734488840581,0.11020443,105490.0,105480.0,0.896099]
[1734488840880,0.047395,105490.0,105480.0,0.896099]
[1734488841773,0.047395,105490.0,105480.0,0.643099]
[1734488844191,0.047395,105490.0,105480.0,0.282299]
[1734488844579,0.047395,105490.0,105480.0,0.643099]
[1734488846487,0.0088355,105500.0,105480.0,0.5957]
[1734488846684,0.047392,105500.0,105490.0,0.408195]
[1734488846889,0.047392,105500.0,105490.0,0.517895]
[1734488849190,0.05652957,105510.0,105500.0,0.047391]
[1734488849387,0.05652957,105510.0,105500.0,0.523391]
[1734488849988,0.119339,105510.0,105500.0,0.1152]
[1734488852811,0.047391,105500.0,105490.0,0.517894]
[1734488853014,0.047391,105500.0,105490.0,0.630594]
[1734488855912,0.05653057,105510.0,105490.0,0.630594]
[1734488856208,0.05653057,105510.0,105500.0,0.047391]
[1734488856598,0.05653057,105510.0,105500.0,0.408191]
[1734488858711,0.05603057,105510.0,105500.0,0.408191]
[1734488862709,0.11884,105510.0,105500.0,0.3608]
[1734488863408,0.047391,105500.0,105490.0,0.3608]
[1734488863596,0.20890043,105500.0,105490.0,0.3608]
[1734488864103,0.047395,105490.0,105480.0,0.53559176]
[1734488864511,0.047395,105490.0,105480.0,0.53509176]
[1734488865005,0.047395,105490.0,105480.0,0.526198]
[1734488872408,0.0565154,105490.0,105480.0,0.526198]
[1734488873407,0.047391,105500.0,105490.0,0.047395]
[1734488873714,0.047391,105500.0,105490.0,0.61718876]
[1734488874212,0.047391,105500.0,105490.0,0.608295]
[1734488874416,0.11020043,105500.0,105490.0,0.608295]
[1734488875009,0.11905017,105500.0,105490.0,0.608295]
[1734488876115,0.05624074,105500.0,105490.0,0.608295]
[1734488878917,0.05624074,105500.0,105490.0,0.5609]
[1734488880818,0.05624074,105500.0,105490.0,0.2001]
[1734488881522,0.05624074,105500.0,105490.0,0.5609]
[1734488881907,0.05624074,105500.0,105490.0,0.2001]
[1734488883321,0.06280943,105510.0,105490.0,0.5609]
[1734488883621,0.047386,105510.0,105500.0,0.3608]
[1734488884326,0.04750651,105510.0,105500.0,0.3608]
[1734488884915,0.06624119,105510.0,105500.0,0.3608]
[1734488886018,0.12905062,105510.0,105500.0,0.3608]
[1734488887122,0.06624119,105510.0,105500.0,0.3608]
[1734488887624,0.12905062,105510.0,105500.0,0.3608]
[1734488888222,0.06624119,105510.0,105500.0,0.3608]
[1734488888524,0.06624119,105510.0,105500.0,0.4607]
[1734488889225,0.04750651,105510.0,105500.0,0.508091]
[1734488889429,0.61303737,105550.0,105500.0,0.50809]
[1734488889729,0.11017743,105550.0,105540.0,0.3608]
[1734488890421,0.11025089,105550.0,105540.0,0.36088841]
[1734488891918,0.12875155,105550.0,105540.0,0.36088841]
[1734488892840,0.13756708,105550.0,105540.0,0.36088841]
[1734488897934,0.07475765,105550.0,105540.0,0.36088841]
[1734488899624,0.07525765,105550.0,105540.0,0.36088841]
[1734488900426,0.13806708,105550.0,105540.0,0.36088841]
[1734488904330,0.43806708,105550.0,105540.0,8.841e-05]
[1734488904531,0.047373,105540.0,105530.0,0.53736841]
[1734488904725,0.11018243,105540.0,105530.0,0.53736841]
[1734488905435,0.11018243,105540.0,105530.0,0.53747358]
[1734488905931,0.047373,105540.0,105530.0,0.53747358]
[1734488906135,0.047373,105540.0,105530.0,0.63987358]
[1734488907852,0.11018243,105540.0,105530.0,0.63987358]
[1734488908333,0.047373,105540.0,105530.0,0.63987358]
[1734488913536,0.11018243,105540.0,105530.0,0.63987358]
[1734488913947,0.08849902,105540.0,105530.0,0.63987358]
[1734488922546,0.047373,105540.0,105530.0,0.63987358]
[1734488923052,0.047373,105540.0,105530.0,0.68725058]
[1734488931157,0.047373,105540.0,105530.0,0.7283766]
[1734488931758,0.11588567,105550.0,105540.0,0.047373]
[1734488931968,0.07475965,105550.0,105540.0,0.408173]
[1734488934362,0.09738501,105550.0,105540.0,0.408173]
[1734488937072,0.09738501,105550.0,105540.0,0.3608]
[1734488943157,0.13851103,105550.0,105540.0,0.3608]
[1734488943464,0.09738501,105550.0,105540.0,0.3608]
[1734488943663,0.19758501,105550.0,105540.0,0.3608]
[1734488944260,0.15645899,105550.0,105540.0,0.3608]
[1734488944456,0.05625899,105550.0,105540.0,0.3608]
[1734488944660,0.09738501,105550.0,105540.0,0.3608]
[1734488955878,0.05625899,105550.0,105540.0,0.3608]
[1734488956475,0.09738501,105550.0,105540.0,0.3608]
[1734488958179,0.05625899,105550.0,105540.0,0.3608]
[1734488958573,0.09738501,105550.0,105540.0,0.3608]
[1734488962083,0.09738501,105550.0,105540.0,0.7216]
[1734488962968,0.05625899,105550.0,105540.0,0.7216]
[1734488963276,0.09738501,105550.0,105540.0,0.7216]
[1734488966675,0.09738501,105550.0,105540.0,0.3608]
[1734488968972,0.09738501,105550.0,105540.0,0.7216]
[1734488969682,0.05625899,105550.0,105540.0,0.7216]
[1734488969982,0.09738501,105550.0,105540.0,0.7216]
[1734488975775,0.18182991,105550.0,105540.0,0.7216]
[1734488979580,0.14070389,105550.0,105540.0,0.7216]
[1734488979790,0.18182991,105550.0,105540.0,0.7216]
[1734488980491,0.14070389,105550.0,105540.0,0.7216]
[1734488980691,0.09738501,105550.0,105540.0,0.7216]
[1734488983592,0.09738501,105550.0,105530.0,0.34398117]
[1734488983893,0.09738501,105550.0,105540.0,0.7216]
[1734488985193,0.05625899,105550.0,105540.0,0.7216]
[1734488985394,0.09738501,105550.0,105540.0,0.7216]
[1734488987793,0.05625899,105550.0,105540.0,0.7216]
[1734488988093,0.09738501,105550.0,105540.0,0.7216]
[1734488990995,0.05625899,105550.0,105540.0,0.7216]
[1734488991199,0.09738501,105550.0,105540.0,0.7216]
[1734488994208,0.05625899,105550.0,105540.0,0.7216]
[1734488994396,0.09738501,105550.0,105540.0,0.7216]
[1734488996498,0.00888899,105550.0,105540.0,0.7216]
[1734488996693,0.00888899,105550.0,105540.0,0.768973]
[1734488998706,0.00888899,105550.0,105540.0,0.81009902]
[1734488998908,0.00888899,105550.0,105540.0,0.768973]
[1734489001202,0.05625699,105550.0,105540.0,0.81009902]
[1734489002307,0.05625699,105550.0,105540.0,0.768973]
[1734489002506,0.05625699,105550.0,105540.0,0.81009902]
[1734489003108,0.09738301,105550.0,105540.0,0.768973]
[1734489006111,0.05625699,105550.0,105540.0,0.768973]
[1734489009005,0.00888899,105550.0,105540.0,0.81009902]
[1734489010305,0.05625699,105550.0,105540.0,0.81009902]
[1734489018222,0.05625699,105550.0,105540.0,0.768973]
[1734489019220,0.13850903,105550.0,105540.0,0.7216]
[1734489019416,0.42520903,105550.0,105540.0,0.7216]
[1734489019821,0.42520903,105550.0,105540.0,0.70663678]
[1734489020009,0.047373,105540.0,105530.0,0.00010517]
[1734489020328,0.047377,105530.0,105520.0,0.34153922]
[1734489020513,0.22512904,105530.0,105520.0,0.34153922]
[1734489020716,0.22512904,105530.0,105520.0,0.34203922]
[1734489021815,0.22512904,105530.0,105520.0,0.34153922]
[1734489022016,0.047382,105520.0,105510.0,0.36088581]
[1734489022209,0.12963404,105520.0,105510.0,0.36088581]
[1734489024323,0.08850802,105520.0,105510.0,0.36088581]
[1734489024509,0.08850802,105520.0,105510.0,0.45738581]
[1734489026822,0.08850802,105520.0,105510.0,0.45788581]
[1734489027825,0.08850802,105520.0,105510.0,0.45738581]
[1734489028434,0.09936276,105520.0,105510.0,0.45738581]
[1734489028740,0.09936276,105520.0,105510.0,0.45788581]
[1734489029333,0.14048878,105520.0,105510.0,0.45788581]
[1734489029733,0.14048878,105520.0,105510.0,0.45738581]
[1734489030742,0.14048878,105520.0,105510.0,0.45788581]
[1734489031143,0.14048878,105520.0,105510.0,0.36138581]
[1734489031334,0.32578878,105520.0,105510.0,0.00058581]
[1734489031836,0.32578878,105520.0,105510.0,8.581e-05]
[1734489032941,0.32578878,105520.0,105510.0,0.00058581]
[1734489033843,0.32578878,105520.0,105510.0,8.581e-05]
[1734489034144,0.32578878,105520.0,105460.0,0.253]
[1734489034145,0.047404,105470.0,105460.0,0.253]
[1734489034335,0.08853002,105470.0,105460.0,0.302]
[1734489034838,0.08853002,105470.0,105460.0,0.6628]
[1734489035038,0.08853002,105470.0,105460.0,0.66290714]
[1734489036531,0.047404,105470.0,105460.0,0.66290714]
[1734489036734,0.08853002,105470.0,105460.0,0.66290714]
[1734489037742,0.0886333,105470.0,105460.0,0.66290714]
[1734489037942,0.11025974,105470.0,105460.0,0.66290714]
[1734489039230,0.12059236,105470.0,105460.0,0.00010714]
[1734489039434,0.047413,105450.0,105440.0,0.3019]
[1734489039641,0.11016546,105450.0,105440.0,0.3019]
[1734489040445,0.11016546,105450.0,105440.0,0.30200375]
[1734489044047,0.47096546,105450.0,105440.0,0.30200375]
[1734489044349,0.11016546,105450.0,105440.0,0.30200375]
[1734489045943,0.53371792,105450.0,105440.0,0.30200375]
[1734489046538,0.18318754,105450.0,105440.0,0.30200375]
[1734489047039,0.54398754,105450.0,105440.0,0.30200375]
[1734489047241,0.18318754,105450.0,105440.0,0.30200375]
[1734489048245,0.54398754,105450.0,105440.0,0.30200375]
[1734489049842,0.54398754,105450.0,105440.0,0.30250375]
[1734489050446,0.54398754,105450.0,105430.0,0.3608]
[1734489050447,0.047422,105430.0,105410.0,0.3608]
[1734489050650,0.047422,105430.0,105420.0,0.1015]
[1734489051037,0.408222,105430.0,105420.0,0.2034]
[1734489051240,0.047422,105430.0,105420.0,0.2034]
[1734489051444,0.047422,105430.0,105420.0,0.20347895]
[1734489051644,0.408222,105430.0,105420.0,0.20347895]
[1734489051851,0.047422,105430.0,105420.0,0.20347895]
[1734489053458,0.11017146,105440.0,105420.0,0.61170495]
[1734489053745,0.11017146,105440.0,105420.0,0.70610495]
[1734489055754,0.047419,105440.0,105430.0,0.3613]
[1734489056049,0.06275246,105440.0,105430.0,0.3613]
[1734489056253,0.12043608,105450.0,105430.0,0.408721]
[1734489056455,0.11016646,105450.0,105440.0,0.4634]
[1734489056958,0.00142315,105460.0,105440.0,0.4634]
[1734489057258,0.12921975,105470.0,105450.0,0.408213]
[1734489057446,0.06646729,105470.0,105460.0,0.3608]
[1734489057643,0.12921975,105470.0,105460.0,0.3608]
[1734489058155,0.1396033,105470.0,105460.0,0.3608]
[1734489059149,0.07685084,105470.0,105460.0,0.3608]
[1734489059658,0.07685084,105470.0,105460.0,0.408209]
[1734489060056,0.05789183,105470.0,105460.0,0.408209]
[1734489060350,0.05789183,105470.0,105460.0,0.504509]
[1734489060554,0.05789183,105470.0,105460.0,0.599709]
[1734489060751,0.01048683,105470.0,105460.0,0.599709]
[1734489061062,0.0005,105480.0,105470.0,0.047404]
[1734489061245,0.047397,105490.0,105480.0,0.0474]
[1734489061450,0.047397,105490.0,105480.0,0.4082]
[1734489062052,0.047397,105490.0,105480.0,0.40828431]
[1734489063054,0.01033572,105490.0,105480.0,0.47103677]
[1734489063258,0.1333483,105500.0,105480.0,0.40828431]
[1734489063554,0.1333483,105500.0,105490.0,0.4559]
[1734489064149,0.1333483,105500.0,105490.0,0.558]
[1734489064444,0.0015124,105500.0,105490.0,0.605395]
[1734489064952,0.11165586,105500.0,105490.0,0.3608]
[1734489066351,0.09608744,105500.0,105490.0,0.47094746]
[1734489066555,0.0844449,105520.0,105500.0,0.047391]
[1734489066760,0.1969098,105530.0,105510.0,0.408186]
[1734489067054,0.00036,105530.0,105520.0,0.408182]
[1734489067852,0.10347982,105540.0,105520.0,0.408182]
[1734489068054,0.02948923,105540.0,105530.0,0.3608]
[1734489068264,0.02948923,105540.0,105530.0,0.4582]
[1734489069174,0.09224169,105540.0,105530.0,0.4582]
[1734489069758,0.02948923,105540.0,105530.0,0.4582]
[1734489070063,0.50041769,105540.0,105520.0,0.4545]
[1734489070247,0.07686523,105540.0,105520.0,0.599282]
[1734489070862,0.07686523,105540.0,105530.0,0.3608]
[1734489072168,0.07686523,105540.0,105520.0,0.599282]
[1734489072463,0.07686523,105540.0,105520.0,0.66203446]
[1734489072665,0.07686523,105540.0,105520.0,0.599282]
[1734489075161,0.07686523,105540.0,105530.0,0.3608]
[1734489077264,0.0105685,105540.0,105530.0,0.47101744]
[1734489077465,0.00011419,105540.0,105530.0,0.47101744]
[1734489079868,0.00061419,105540.0,105530.0,0.47101744]
[1734489082164,0.00061419,105540.0,105530.0,0.72401744]
[1734489086771,0.00061419,105540.0,105530.0,0.73420767]
[1734489087768,0.00011419,105540.0,105530.0,0.73420767]
[1734489088171,0.00011419,105540.0,105530.0,0.48120767]
[1734489091279,0.00011419,105540.0,105530.0,0.73420767]
[1734489092485,0.00011419,105540.0,105530.0,0.84396013]
[1734489092681,0.0005,105550.0,105540.0,0.17287792]
[1734489092882,0.00046,105560.0,105550.0,0.047368]
[1734489093091,0.0849049,105560.0,105550.0,0.56492046]
[1734489093890,0.0854049,105560.0,105550.0,0.56492046]
[1734489094486,0.1327689,105560.0,105550.0,0.502168]
[1734489094890,0.1322689,105560.0,105550.0,0.502168]
[1734489095086,0.2443738,105560.0,105550.0,0.502168]
[1734489095489,0.1125649,105560.0,105550.0,0.56492046]
[1734489095689,0.19666926,105560.0,105550.0,0.56492046]
[1734489095984,0.19716926,105560.0,105550.0,0.56492046]
[1734489096185,0.1130649,105560.0,105550.0,0.56492046]
[1734489096795,0.1125649,105560.0,105550.0,0.56492046]
[1734489097195,0.1125649,105560.0,105550.0,0.81792046]
[1734489097790,0.1130649,105560.0,105550.0,0.81792046]
[1734489098898,0.1125649,105560.0,105550.0,0.81792046]
[1734489099600,0.1599289,105560.0,105550.0,0.755168]
[1734489099783,0.30006137,105560.0,105550.0,0.755168]
[1734489099984,0.25269737,105560.0,105550.0,0.81792046]
[1734489100193,0.00046,105560.0,105550.0,0.81792046]
[1734489100388,0.11264899,105560.0,105550.0,0.81792046]
[1734489101899,0.11264899,105560.0,105550.0,0.755168]
[1734489102100,0.11264899,105560.0,105550.0,0.81792046]
[1734489102698,0.19680114,105560.0,105550.0,0.81792046]
[1734489103703,0.08415215,105560.0,105550.0,0.81792046]
[1734489105802,0.08415215,105560.0,105550.0,1.11792046]
[1734489105998,0.08415215,105560.0,105550.0,1.13441113]
[1734489106403,0.19634114,105560.0,105550.0,1.07165867]
[1734489106606,0.19634114,105560.0,105540.0,0.46569376]
[1734489106607,0.14013247,105560.0,105540.0,0.4568]
[1734489106796,0.15956077,105550.0,105540.0,0.3608]
[1734489106999,0.047373,105540.0,105530.0,0.34558798]
[1734489107204,0.15956577,105540.0,105530.0,0.34558798]
[1734489107391,0.15956577,105540.0,105530.0,0.39296498]
[1734489107392,0.29969824,105540.0,105530.0,0.39296498]
[1734489107699,0.15956577,105540.0,105530.0,0.81651744]
[1734489108104,0.24371749,105540.0,105530.0,0.66126498]
[1734489109410,0.13152472,105540.0,105530.0,0.66126498]
[1734489111305,0.047373,105540.0,105530.0,0.66126498]
[1734489111995,0.13152472,105540.0,105530.0,0.72401744]
[1734489112194,0.08415172,105550.0,105530.0,0.40826398]
[1734489112397,0.047373,105540.0,105530.0,8.798e-05]
[1734489112598,0.47092546,105540.0,105530.0,8.798e-05]
[1734489112803,0.86682546,105540.0,105530.0,8.798e-05]
[1734489115796,0.56682546,105540.0,105530.0,8.798e-05]
[1734489122618,0.92957792,105540.0,105530.0,8.798e-05]
[1734489122807,0.047377,105530.0,105520.0,0.0005]
[1734489123010,0.47092946,105530.0,105520.0,0.0005]
[1734489123207,0.56492946,105530.0,105520.0,0.0005]
[1734489123716,0.56492946,105530.0,105520.0,0.00062242]
[1734489123906,0.56492946,105530.0,105520.0,0.00012242]
[1734489131429,0.48686658,105530.0,105520.0,0.00012242]
[1734489132320,0.12606658,105530.0,105520.0,0.00012242]
[1734489132715,0.06331412,105530.0,105520.0,0.37092242]
[1734489135228,0.06331412,105530.0,105520.0,0.41830442]
[1734489139330,0.01593712,105530.0,105520.0,0.41830442]
[1734489139627,0.48983089,105540.0,105520.0,0.41830442]
[1734489139828,0.48983089,105540.0,105530.0,0.2727]
[1734489140025,0.3608,105550.0,105530.0,0.680877]
[1734489140327,0.04737,105550.0,105530.0,0.680877]
[1734489140625,0.04737,105550.0,105540.0,0.3608]
[1734489140828,0.49037292,105560.0,105540.0,0.408173]
[1734489141021,0.48987292,105560.0,105550.0,0.0902]
[1734489141218,0.50582033,105560.0,105550.0,0.0902]
[1734489141635,0.14502033,105560.0,105550.0,0.0902]
[1734489141816,0.12606687,105560.0,105550.0,0.451]
[1734489142133,0.06381441,105560.0,105550.0,0.5451]
[1734489142430,0.06381441,105560.0,105550.0,0.1843]
[1734489142630,0.06381441,105560.0,105550.0,0.5451]
[1734489142819,0.08313183,105560.0,105550.0,0.5451]
[1734489143020,0.08263183,105560.0,105550.0,0.1843]
[1734489144026,0.08313183,105560.0,105550.0,0.1843]
[1734489144932,0.08263183,105560.0,105550.0,0.1843]
[1734489145123,0.08263183,105560.0,105550.0,0.5451]
[1734489146018,0.08313183,105560.0,105550.0,0.5451]
[1734489146928,0.08313183,105560.0,105550.0,0.592468]
[1734489146929,0.08263183,105560.0,105550.0,0.592468]
[1734489147333,0.08263183,105560.0,105550.0,0.231668]
[1734489147937,0.08313183,105560.0,105550.0,0.231668]
[1734489148930,0.08263183,105560.0,105550.0,0.231668]
[1734489149126,0.03526483,105560.0,105550.0,0.592468]
[1734489149337,0.04878277,105570.0,105550.0,0.65522046]
[1734489149533,0.04878277,105570.0,105560.0,0.0958]
[1734489150233,0.00142177,105570.0,105560.0,0.56671646]
[1734489150535,0.00142177,105570.0,105560.0,0.503964]
[1734489151533,0.01717192,105570.0,105560.0,0.503964]
[1734489152438,0.01575015,105570.0,105560.0,0.503964]
[1734489152640,0.47889216,105580.0,105560.0,0.503964]
[1734489152841,0.4161397,105580.0,105570.0,0.0906]
[1734489153233,0.47889216,105580.0,105570.0,0.0906]
[1734489153835,0.4161397,105580.0,105570.0,0.0906]
[1734489154143,0.4161397,105580.0,105570.0,0.137959]
[1734489154440,0.4161397,105580.0,105570.0,0.229659]
[1734489154639,0.4161397,105580.0,105570.0,0.1823]
[1734489155342,0.43239106,105580.0,105570.0,0.1823]
[1734489156345,0.43239106,105580.0,105570.0,0.5431]
[1734489156551,0.43239106,105580.0,105570.0,0.590459]
[1734489156851,0.36625364,105580.0,105570.0,0.590459]
[1734489157353,0.01633364,105580.0,105570.0,0.590459]
[1734489158950,0.01683364,105580.0,105570.0,0.590459]
[1734489160051,0.01633364,105580.0,105570.0,0.590459]
[1734489161047,0.01683364,105580.0,105570.0,0.590459]
[1734489161251,0.4403861,105580.0,105550.0,0.3608]
[1734489161450,0.11011646,105560.0,105550.0,0.3608]
[1734489161748,0.047364,105560.0,105550.0,0.408168]
[1734489161945,0.047364,105560.0,105550.0,0.588268]
[1734489162159,0.04736,105570.0,105550.0,0.588268]
[1734489162454,0.57303364,105580.0,105560.0,0.047364]
[1734489162654,0.62038964,105580.0,105560.0,0.408164]
[1734489162859,0.6831421,105580.0,105560.0,0.408164]
[1734489163161,0.6836421,105580.0,105560.0,0.408164]
[1734489163454,0.62088964,105580.0,105560.0,0.408164]
[1734489164158,0.62038964,105580.0,105560.0,0.408164]
[1734489164951,0.62088964,105580.0,105560.0,0.408164]
[1734489165555,0.62088964,105580.0,105560.0,0.506064]
[1734489165951,0.62038964,105580.0,105560.0,0.506064]
[1734489166458,0.06368964,105580.0,105570.0,0.3608]
[1734489167861,0.06368964,105580.0,105560.0,0.55342]
[1734489168169,0.06368964,105580.0,105560.0,0.50606]
[1734489168856,0.06368964,105580.0,105560.0,0.55342]
[1734489169362,0.06368964,105580.0,105570.0,0.3608]
[1734489169564,0.06368964,105580.0,105570.0,0.047359]
[1734489171461,0.06368964,105580.0,105560.0,0.506062]
[1734489175165,0.047359,105570.0,105560.0,0.4587]
[1734489175366,0.11011146,105570.0,105560.0,0.4587]
[1734489175671,0.047359,105570.0,105560.0,0.4587]
[1734489181169,0.047359,105570.0,105560.0,0.0979]
[1734489182075,0.047359,105570.0,105560.0,0.4587]
[1734489183168,0.47091146,105570.0,105560.0,0.00889376]
[1734489183369,0.53366392,105570.0,105560.0,0.00889376]
[1734489183574,0.53366392,105570.0,105540.0,0.46389376]
[1734489183876,0.06275246,105550.0,105540.0,0.46389376]
[1734489184070,0.06275246,105550.0,105540.0,0.46339376]
[1734489184071,0.11012046,105550.0,105540.0,0.46339376]
[1734489184375,0.53367292,105550.0,105520.0,0.38123746]
[1734489184576,0.11012946,105530.0,105520.0,0.0115437]
[1734489184872,0.47092946,105530.0,105520.0,0.01012242]
[1734489187168,0.421722,105550.0,105530.0,0.047376]
[1734489187369,0.48447446,105550.0,105530.0,0.593776]